[Event "*** Titled Tuesday 3|2 Blitz"]
[Site "Chess.com"]
[Date "2016.01.05"]
[Round "8"]
[White "alturas_pacificas"]
[Black "DaPazz"]
[Result "1/2-1/2"]
[WhiteElo "2068"]
[BlackElo "1868"]
[TimeControl "180+2"]
[EndTime "12:40:22 PST"]
[Termination "Game drawn by agreement"]

1. d4 {[%clk 0:03:01.9]} 1... d5 {[%clk 0:02:57]} 2. Bf4 {[%clk 0:03:02.3]} 2...
c5 {[%clk 0:02:55.7]} 3. e3 {[%clk 0:03:03.3]} 3... Qb6 {[%clk 0:02:49.3]} 4.
Nc3 {[%clk 0:03:03.1]} 4... e6 {[%clk 0:02:49.1]} 5. Nb5 {[%clk 0:03:02]} 5...
Na6 {[%clk 0:02:49.6]} 6. c3 {[%clk 0:03:02.6]} 6... c4 {[%clk 0:02:45.8]} 7. a4
{[%clk 0:03:02.7]} 7... Nf6 {[%clk 0:02:44.1]} 8. Nf3 {[%clk 0:03:00.6]} 8...
Bd7 {[%clk 0:02:43.4]} 9. b3 {[%clk 0:02:54.3]} 9... Bxb5 {[%clk 0:02:34.5]} 10.
axb5 {[%clk 0:02:56.2]} 10... Qxb5 {[%clk 0:02:34.5]} 11. bxc4 {[%clk
0:02:57.3]} 11... dxc4 {[%clk 0:02:35.4]} 12. Ne5 {[%clk 0:02:58.3]} 12... Rc8
{[%clk 0:02:24.2]} 13. Rb1 {[%clk 0:02:55.9]} 13... Qd5 {[%clk 0:02:21.5]} 14.
Be2 {[%clk 0:02:50.8]} 14... b5 {[%clk 0:02:18.5]} 15. Bf3 {[%clk 0:02:50.9]}
15... Ne4 {[%clk 0:02:19.4]} 16. O-O {[%clk 0:02:44.2]} 16... f5 {[%clk
0:02:11.7]} 17. Bxe4 {[%clk 0:02:30]} 17... fxe4 {[%clk 0:02:11.8]} 18. Ra1
{[%clk 0:02:22.5]} 18... Nc7 {[%clk 0:01:55.1]} 19. Rxa7 {[%clk 0:02:22]} 19...
g6 {[%clk 0:01:54.1]} 20. Nxg6 {[%clk 0:02:16.1]} 20... hxg6 {[%clk 0:01:53.1]}
21. Rxc7 {[%clk 0:02:17.6]} 21... Rxc7 {[%clk 0:01:51.4]} 22. Bxc7 {[%clk
0:02:19.5]} 22... Bd6 {[%clk 0:01:49.3]} 23. Bxd6 {[%clk 0:02:19.5]} 23... Qxd6
{[%clk 0:01:50.1]} 24. h3 {[%clk 0:02:21.1]} 24... Kf7 {[%clk 0:01:47.5]} 25.
Qg4 {[%clk 0:02:18.2]} 25... Qd5 {[%clk 0:01:44]} 26. Ra1 {[%clk 0:02:18.6]}
26... Qf5 {[%clk 0:01:41.5]} 27. Ra7+ {[%clk 0:02:00.6]} 27... Kf6 {[%clk
0:01:41.8]} 28. Qxf5+ {[%clk 0:01:53.6]} 28... gxf5 {[%clk 0:01:38.3]} 29. Rb7
{[%clk 0:01:54.5]} 29... Ra8 {[%clk 0:01:38.7]} 30. Rxb5 {[%clk 0:01:55.5]}
30... Ra3 {[%clk 0:01:39.5]} 31. Kh2 {[%clk 0:01:52.4]} 31... Rxc3 {[%clk
0:01:39.8]} 32. Kg3 {[%clk 0:01:53.9]} 32... Rc2 {[%clk 0:01:39.5]} 33. Rc5
{[%clk 0:01:54.4]} 33... c3 {[%clk 0:01:40.2]} 34. h4 {[%clk 0:01:55.4]} 34...
Rc1 {[%clk 0:01:33.3]} 35. Rc6 {[%clk 0:01:56]} 35... Ke7 {[%clk 0:01:28.1]} 36.
h5 {[%clk 0:01:53.7]} 36... c2 {[%clk 0:01:25.4]} 37. h6 {[%clk 0:01:51.7]}
37... Kd7 {[%clk 0:01:25.4]} 38. Rc3 {[%clk 0:01:51.5]} 38... Rh1 {[%clk
0:01:23]} 39. Rxc2 {[%clk 0:01:52.4]} 39... Rxh6 {[%clk 0:01:23.8]} 40. f3
{[%clk 0:01:52.9]} 40... exf3 {[%clk 0:01:21.7]} 41. gxf3 {[%clk 0:01:53.7]}
41... Kd6 {[%clk 0:01:23.2]} 42. Ra2 {[%clk 0:01:52.2]} 42... Rg6+ {[%clk
0:01:20.9]} 43. Kf4 {[%clk 0:01:53.6]} 43... Rh6 {[%clk 0:01:20.3]} 44. Ra6+
{[%clk 0:01:54.8]} 44... Kd5 {[%clk 0:01:03.9]} 45. Ra5+ {[%clk 0:01:55]} 45...
Kd6 {[%clk 0:01:04.4]} 46. e4 {[%clk 0:01:39.8]} 46... fxe4 {[%clk 0:01:03.9]}
47. fxe4 {[%clk 0:01:41.3]} 47... Rh4+ {[%clk 0:01:04.1]} 48. Kf3 {[%clk
0:01:42.2]} 48... Rh3+ {[%clk 0:01:04.7]} 49. Kg4 {[%clk 0:01:42.6]} 49... Rd3
{[%clk 0:01:03.6]} 50. Ra6+ {[%clk 0:01:41.6]} 50... Ke7 {[%clk 0:01:03.1]} 51.
Kf4 {[%clk 0:01:40.8]} 51... Rxd4 {[%clk 0:01:01.8]} 52. Ke5 {[%clk 0:01:42.2]}
52... Rb4 {[%clk 0:00:59.4]} 53. Rxe6+ {[%clk 0:01:43.6]} 53... Kf7 {[%clk
0:01:00.7]} 54. Rf6+ {[%clk 0:01:44]} 54... Ke7 {[%clk 0:01:01.1]} 55. Re6+
{[%clk 0:01:45.4]} 55... Kf7 {[%clk 0:01:01.2]} 56. Ra6 {[%clk 0:01:46.8]} 56...
Ke7 {[%clk 0:00:59.2]} 57. Ra7+ {[%clk 0:01:47]} 57... Ke8 {[%clk 0:00:59.9]}
58. Kf5 {[%clk 0:01:47.1]} 58... Rb6 {[%clk 0:00:58.2]} 59. e5 {[%clk
0:01:48.2]} 59... Rc6 {[%clk 0:00:56.4]} 60. Rh7 {[%clk 0:01:49.5]} 60... Ra6
{[%clk 0:00:53.1]} 61. Rh8+ {[%clk 0:01:49.1]} 61... Ke7 {[%clk 0:00:53.9]} 62.
Rh7+ {[%clk 0:01:51]} 62... Ke8 {[%clk 0:00:54.9]} 63. Rb7 {[%clk 0:01:52.6]}
63... Rc6 {[%clk 0:00:54.1]} 64. Ke4 {[%clk 0:01:53.7]} 64... Ra6 {[%clk
0:00:53.2]} 65. Kd5 {[%clk 0:01:55]} 65... Rh6 {[%clk 0:00:52]} 66. e6 {[%clk
0:01:53.7]} 66... Rh1 {[%clk 0:00:51.7]} 67. Rb8+ {[%clk 0:01:54.5]} 67... Ke7
{[%clk 0:00:51.9]} 68. Rb7+ {[%clk 0:01:56]} 68... Ke8 {[%clk 0:00:52.9]} 69.
Ke5 {[%clk 0:01:56.3]} 69... Re1+ {[%clk 0:00:53.2]} 70. Kd6 {[%clk 0:01:57.9]}
70... Rd1+ {[%clk 0:00:54.1]} 71. Ke5 {[%clk 0:01:59.6]} 71... Re1+ {[%clk
0:00:55.1]} 72. Kf6 {[%clk 0:02:01.2]} 72... Rf1+ {[%clk 0:00:56]} 73. Kg5
{[%clk 0:02:02.7]} 73... Rg1+ {[%clk 0:00:56.7]} 74. Kf5 {[%clk 0:02:03.9]}
74... Rf1+ {[%clk 0:00:57.6]} 75. Kg4 {[%clk 0:02:05.5]} 75... Rg1+ {[%clk
0:00:58.4]} 76. Kf4 {[%clk 0:02:06.5]} 76... Rf1+ {[%clk 0:00:59.2]} 77. Ke3
{[%clk 0:02:06.7]} 77... Re1+ {[%clk 0:00:59.7]} 78. Kd4 {[%clk 0:02:08.3]}
78... Rxe6 {[%clk 0:01:00.4]} 79. Kd5 {[%clk 0:02:09.6]} 79... Rh6 {[%clk
0:01:01.2]} 80. Rb8+ {[%clk 0:02:10.3]} 80... Kd7 {[%clk 0:01:01.6]} 81. Rb7+
{[%clk 0:02:11.8]} 81... Kd8 {[%clk 0:01:01.9]} 82. Rg7 {[%clk 0:02:11.6]} 82...
Ra6 {[%clk 0:01:02.2]} 83. Kc5 {[%clk 0:02:12.6]} 83... Rf6 {[%clk 0:01:02.2]}
84. Kd5 {[%clk 0:02:13.5]} 84... Ra6 {[%clk 0:01:02.5]} 1/2-1/2

[Event "*** Titled Tuesday 3|2 Blitz"]
[Site "Chess.com"]
[Date "2016.01.05"]
[Round "8"]
[White "Zlatan56"]
[Black "Tesla37"]
[Result "1/2-1/2"]
[WhiteElo "2582"]
[BlackElo "2545"]
[TimeControl "180+2"]
[EndTime "12:40:47 PST"]
[Termination "Game drawn by agreement"]

1. Nf3 {[%clk 0:03:01.3]} 1... d5 {[%clk 0:03:00.3]} 2. g3 {[%clk 0:03:01.8]}
2... c6 {[%clk 0:03:01]} 3. Bg2 {[%clk 0:03:02.6]} 3... Bg4 {[%clk 0:03:02.6]}
4. O-O {[%clk 0:03:03.6]} 4... Nd7 {[%clk 0:03:03.5]} 5. d3 {[%clk 0:03:00.1]}
5... Ngf6 {[%clk 0:03:03.4]} 6. c4 {[%clk 0:03:01.1]} 6... e6 {[%clk 0:03:03.1]}
7. cxd5 {[%clk 0:03:01.8]} 7... exd5 {[%clk 0:03:03.7]} 8. h3 {[%clk 0:03:01.6]}
8... Bh5 {[%clk 0:03:03.1]} 9. Nc3 {[%clk 0:03:00.4]} 9... Bc5 {[%clk
0:03:02.9]} 10. Qb3 {[%clk 0:02:58.1]} 10... Bb6 {[%clk 0:03:03.7]} 11. Na4
{[%clk 0:02:57.8]} 11... O-O {[%clk 0:03:05.2]} 12. Nxb6 {[%clk 0:02:59.3]}
12... axb6 {[%clk 0:03:06.3]} 13. Qc2 {[%clk 0:03:00.5]} 13... Re8 {[%clk
0:03:06.8]} 14. Re1 {[%clk 0:02:55.8]} 14... Nc5 {[%clk 0:03:03.8]} 15. b3
{[%clk 0:02:54.1]} 15... Ne6 {[%clk 0:03:01.6]} 16. Bb2 {[%clk 0:02:54.1]} 16...
Qe7 {[%clk 0:02:56.5]} 17. Nd4 {[%clk 0:02:48]} 17... Nxd4 {[%clk 0:02:51.2]}
18. Bxd4 {[%clk 0:02:49.9]} 18... b5 {[%clk 0:02:52.6]} 19. e4 {[%clk
0:02:47.6]} 19... dxe4 {[%clk 0:02:49.5]} 20. dxe4 {[%clk 0:02:49.5]} 20... Bg6
{[%clk 0:02:44.7]} 21. Qb2 {[%clk 0:02:43.9]} 21... Rad8 {[%clk 0:02:35.8]} 22.
a4 {[%clk 0:02:33.7]} 22... bxa4 {[%clk 0:02:33.6]} 23. bxa4 {[%clk 0:02:35.6]}
23... Rd7 {[%clk 0:02:02]} 24. a5 {[%clk 0:02:23.1]} 24... Red8 {[%clk
0:02:00.8]} 25. Bxf6 {[%clk 0:02:21.3]} 25... gxf6 {[%clk 0:01:56.9]} 26. Rab1
{[%clk 0:02:16.7]} 26... Ra8 {[%clk 0:01:36.2]} 27. Qc3 {[%clk 0:02:03]} 27...
Qe5 {[%clk 0:01:35.4]} 28. Qe3 {[%clk 0:01:39.7]} 28... Rxa5 {[%clk 0:01:33.6]}
29. f4 {[%clk 0:01:40.5]} 29... Qd6 {[%clk 0:01:14.6]} 30. f5 {[%clk 0:01:38.2]}
30... Ra3 {[%clk 0:01:12.7]} 31. Qf2 {[%clk 0:01:30.7]} 31... Rxg3 {[%clk
0:01:01.9]} 32. e5 {[%clk 0:01:16]} 32... Qd3 {[%clk 0:00:52.7]} 33. exf6 {[%clk
0:01:08.6]} 33... Rd8 {[%clk 0:00:34.4]} 34. fxg6 {[%clk 0:00:55]} 34... Rxg6
{[%clk 0:00:33.6]} 35. Rxb7 {[%clk 0:00:39.2]} 35... h5 {[%clk 0:00:32.7]} 36.
Rbe7 {[%clk 0:00:39.6]} 36... Qxh3 {[%clk 0:00:28.7]} 37. Re8+ {[%clk
0:00:40.1]} 37... Rxe8 {[%clk 0:00:28.8]} 38. Rxe8+ {[%clk 0:00:41.6]} 38... Kh7
{[%clk 0:00:30.3]} 39. Re7 {[%clk 0:00:42.6]} 39... Qb3 {[%clk 0:00:29.2]} 40.
Kh2 {[%clk 0:00:37.8]} 40... Qb8+ {[%clk 0:00:30]} 41. Kh1 {[%clk 0:00:38.4]}
41... Qb1+ {[%clk 0:00:30.5]} 42. Bf1 {[%clk 0:00:38.4]} 42... Qb3 {[%clk
0:00:22.7]} 43. Qf5 {[%clk 0:00:23.5]} 43... Kh6 {[%clk 0:00:08.9]} 44. Qf4+
{[%clk 0:00:21.4]} 44... Kh7 {[%clk 0:00:09.7]} 45. Re3 {[%clk 0:00:20.6]} 45...
Qd5+ {[%clk 0:00:09.9]} 46. Rf3 {[%clk 0:00:20.4]} 46... Rg5 {[%clk 0:00:08.8]}
47. Kh2 {[%clk 0:00:19.4]} 47... Kh6 {[%clk 0:00:09]} 48. Rg3 {[%clk 0:00:18.4]}
48... Qe5 {[%clk 0:00:08.8]} 49. Qxe5 {[%clk 0:00:13.2]} 49... Rxe5 {[%clk
0:00:09.9]} 50. Bd3 {[%clk 0:00:11.2]} 50... Re6 {[%clk 0:00:09.8]} 51. Rf3
{[%clk 0:00:10.9]} 51... Kg5 {[%clk 0:00:10.7]} 52. Rf5+ {[%clk 0:00:11.9]}
52... Kg6 {[%clk 0:00:12]} 53. Rf3+ {[%clk 0:00:07.9]} 53... Kg5 {[%clk
0:00:13.1]} 54. Rf5+ {[%clk 0:00:06.7]} 54... Kg6 {[%clk 0:00:14.2]} 55. Rc5+
{[%clk 0:00:07.3]} 55... Kxf6 {[%clk 0:00:15]} 56. Bc4 {[%clk 0:00:08.3]} 56...
Rd6 {[%clk 0:00:11.6]} 57. Kg3 {[%clk 0:00:09]} 57... Kg6 {[%clk 0:00:12.2]} 58.
Be2 {[%clk 0:00:08.2]} 58... f5 {[%clk 0:00:13.2]} 59. Bf3 {[%clk 0:00:08.2]}
59... Kg5 {[%clk 0:00:14.2]} 60. Rxc6 {[%clk 0:00:07.2]} 60... Rxc6 {[%clk
0:00:14.4]} 61. Bxc6 {[%clk 0:00:07.5]} 1/2-1/2

[Event "*** Titled Tuesday 3|2 Blitz"]
[Site "Chess.com"]
[Date "2016.01.05"]
[Round "8"]
[White "THORK"]
[Black "saraswathii"]
[Result "1-0"]
[WhiteElo "2157"]
[BlackElo "1852"]
[TimeControl "180+2"]
[EndTime "12:41:29 PST"]
[Termination "THORK won by checkmate"]

1. e3 {[%clk 0:02:24.9]} 1... d5 {[%clk 0:02:53.9]} 2. c4 {[%clk 0:02:24.9]}
2... c6 {[%clk 0:02:54]} 3. Nf3 {[%clk 0:02:25.8]} 3... Nf6 {[%clk 0:02:52.8]}
4. Nc3 {[%clk 0:02:27.1]} 4... Bf5 {[%clk 0:02:51.6]} 5. b3 {[%clk 0:02:26.9]}
5... Nbd7 {[%clk 0:02:15.2]} 6. cxd5 {[%clk 0:02:27]} 6... cxd5 {[%clk 0:02:15]}
7. Bb2 {[%clk 0:02:21.2]} 7... e6 {[%clk 0:02:14.8]} 8. h3 {[%clk 0:02:18]} 8...
Bd6 {[%clk 0:02:10.7]} 9. Nb5 {[%clk 0:02:11.7]} 9... Bb8 {[%clk 0:01:29.7]} 10.
Ba3 {[%clk 0:01:59.3]} 10... a6 {[%clk 0:01:28]} 11. Nd6+ {[%clk 0:02:00.1]}
11... Bxd6 {[%clk 0:01:09.6]} 12. Bxd6 {[%clk 0:01:59.9]} 12... Qb6 {[%clk
0:01:08.3]} 13. Ba3 {[%clk 0:01:59.2]} 13... Qa5 {[%clk 0:00:54.4]} 14. Bb2
{[%clk 0:01:59.2]} 14... O-O {[%clk 0:00:53]} 15. Be2 {[%clk 0:02:00.4]} 15...
Rac8 {[%clk 0:00:51]} 16. O-O {[%clk 0:01:58.7]} 16... Bc2 {[%clk 0:00:48.4]}
17. Qe1 {[%clk 0:01:58.4]} 17... Bg6 {[%clk 0:00:43.7]} 18. d3 {[%clk
0:01:58.5]} 18... Qxe1 {[%clk 0:00:38]} 19. Rfxe1 {[%clk 0:01:59.8]} 19... Rc2
{[%clk 0:00:37.4]} 20. Ba3 {[%clk 0:02:01.2]} 20... Rfc8 {[%clk 0:00:27]} 21.
Rac1 {[%clk 0:01:59.1]} 21... e5 {[%clk 0:00:25.3]} 22. Rxc2 {[%clk 0:01:51.6]}
22... Rxc2 {[%clk 0:00:24.4]} 23. Rc1 {[%clk 0:01:52.8]} 23... Rxc1+ {[%clk
0:00:20.7]} 24. Bxc1 {[%clk 0:01:53.4]} 24... e4 {[%clk 0:00:21.1]} 25. Ne1
{[%clk 0:01:51.8]} 25... Ne5 {[%clk 0:00:18.6]} 26. d4 {[%clk 0:01:46.6]} 26...
Nc6 {[%clk 0:00:18.8]} 27. Bd2 {[%clk 0:01:46]} 27... Nd7 {[%clk 0:00:17.9]} 28.
Nc2 {[%clk 0:01:46.1]} 28... f5 {[%clk 0:00:17.5]} 29. Nb4 {[%clk 0:01:45.6]}
29... Nxb4 {[%clk 0:00:17.8]} 30. Bxb4 {[%clk 0:01:46.9]} 30... Kf7 {[%clk
0:00:18.2]} 31. Kf1 {[%clk 0:01:46.2]} 31... Ke6 {[%clk 0:00:18.1]} 32. Ke1
{[%clk 0:01:47.4]} 32... Nb6 {[%clk 0:00:18.2]} 33. a4 {[%clk 0:01:46.5]} 33...
Nc8 {[%clk 0:00:18.3]} 34. a5 {[%clk 0:01:46.9]} 34... Kd7 {[%clk 0:00:18.4]}
35. Bf8 {[%clk 0:01:46.3]} 35... Nd6 {[%clk 0:00:17.2]} 36. Bxg7 {[%clk
0:01:43.8]} 36... Nb5 {[%clk 0:00:17.3]} 37. Kd2 {[%clk 0:01:40.5]} 37... Kc6
{[%clk 0:00:15.9]} 38. Bf8 {[%clk 0:01:40.5]} 38... Be8 {[%clk 0:00:15.5]} 39.
f3 {[%clk 0:01:37.3]} 39... Nc7 {[%clk 0:00:16.1]} 40. fxe4 {[%clk 0:01:32.1]}
40... fxe4 {[%clk 0:00:18]} 41. g4 {[%clk 0:01:32]} 41... Ne6 {[%clk 0:00:18.1]}
42. Ba3 {[%clk 0:01:30.2]} 42... Kc7 {[%clk 0:00:18.9]} 43. h4 {[%clk 0:01:29]}
43... Bb5 {[%clk 0:00:19.3]} 44. Bd1 {[%clk 0:01:21.7]} 44... h6 {[%clk
0:00:13.1]} 45. Be7 {[%clk 0:01:21.7]} 45... Kd7 {[%clk 0:00:13.5]} 46. Bf6
{[%clk 0:01:22.9]} 46... Ke8 {[%clk 0:00:12.7]} 47. Be5 {[%clk 0:01:21.6]} 47...
Kf7 {[%clk 0:00:12.9]} 48. Kc3 {[%clk 0:01:22.2]} 48... Bd7 {[%clk 0:00:13.5]}
49. Kb4 {[%clk 0:01:22.3]} 49... Bc6 {[%clk 0:00:13.9]} 50. Bf4 {[%clk
0:01:20.6]} 50... Nxf4 {[%clk 0:00:13.6]} 51. exf4 {[%clk 0:01:21.9]} 51... Ke6
{[%clk 0:00:14.4]} 52. Kc3 {[%clk 0:01:16.4]} 52... Kf6 {[%clk 0:00:15.2]} 53.
Kd2 {[%clk 0:01:17.2]} 53... Bb5 {[%clk 0:00:15.4]} 54. Ke3 {[%clk 0:01:18.3]}
54... Bd3 {[%clk 0:00:16.1]} 55. b4 {[%clk 0:01:19.4]} 55... Kg6 {[%clk
0:00:16.1]} 56. Ba4 {[%clk 0:01:14.9]} 56... Kf6 {[%clk 0:00:16.3]} 57. Be8
{[%clk 0:01:13.1]} 57... Ke7 {[%clk 0:00:15.4]} 58. Ba4 {[%clk 0:01:08.2]} 58...
Kf6 {[%clk 0:00:13.4]} 59. Bb3 {[%clk 0:01:08.9]} 59... Ke6 {[%clk 0:00:14]} 60.
f5+ {[%clk 0:01:09]} 60... Kd6 {[%clk 0:00:14.9]} 61. g5 {[%clk 0:01:09.8]}
61... hxg5 {[%clk 0:00:14.6]} 62. hxg5 {[%clk 0:01:11.5]} 62... Ke7 {[%clk
0:00:15.3]} 63. Bxd5 {[%clk 0:01:11.8]} 63... Kd6 {[%clk 0:00:13.9]} 64. Bxb7
{[%clk 0:01:12.9]} 64... Bb5 {[%clk 0:00:10.1]} 65. Bxe4 {[%clk 0:01:13.7]}
65... Ke7 {[%clk 0:00:11]} 66. d5 {[%clk 0:01:13.9]} 66... Kd6 {[%clk
0:00:11.4]} 67. Kd4 {[%clk 0:01:15.4]} 67... Ke7 {[%clk 0:00:08.5]} 68. Bd3
{[%clk 0:01:16.5]} 68... Kd6 {[%clk 0:00:09.2]} 69. Bxb5 {[%clk 0:01:17.2]}
69... axb5 {[%clk 0:00:10]} 70. Ke4 {[%clk 0:01:18.5]} 70... Kd7 {[%clk
0:00:08.8]} 71. Ke5 {[%clk 0:01:19.8]} 71... Ke7 {[%clk 0:00:03.9]} 72. g6
{[%clk 0:01:20.9]} 72... Kf8 {[%clk 0:00:04.4]} 73. f6 {[%clk 0:01:22]} 73...
Kg8 {[%clk 0:00:05.4]} 74. Kd6 {[%clk 0:01:22.5]} 74... Kf8 {[%clk 0:00:06.5]}
75. Kd7 {[%clk 0:01:23.9]} 75... Kg8 {[%clk 0:00:07.5]} 76. Ke7 {[%clk
0:01:25.3]} 76... Kh8 {[%clk 0:00:08.5]} 77. a6 {[%clk 0:01:26]} 77... Kg8
{[%clk 0:00:09.2]} 78. a7 {[%clk 0:01:27.4]} 78... Kh8 {[%clk 0:00:09.6]} 79.
a8=R# {[%clk 0:01:27.4]} 1-0

[Event "*** Titled Tuesday 3|2 Blitz"]
[Site "Chess.com"]
[Date "2016.01.05"]
[Round "8"]
[White "bugsbunny444"]
[Black "HansCoolNiemann"]
[Result "0-1"]
[WhiteElo "2338"]
[BlackElo "2221"]
[TimeControl "180+2"]
[EndTime "12:41:34 PST"]
[Termination "HansCoolNiemann won by resignation"]

1. Nf3 {[%clk 0:03:01.9]} 1... Nf6 {[%clk 0:02:57]} 2. c4 {[%clk 0:03:02.6]}
2... g6 {[%clk 0:02:55.6]} 3. b4 {[%clk 0:03:03.1]} 3... Bg7 {[%clk 0:02:53]} 4.
Bb2 {[%clk 0:03:04.5]} 4... O-O {[%clk 0:02:54.4]} 5. g3 {[%clk 0:03:05.8]} 5...
d5 {[%clk 0:02:54.9]} 6. cxd5 {[%clk 0:03:06.8]} 6... Nxd5 {[%clk 0:02:56.8]} 7.
Bxg7 {[%clk 0:03:08.4]} 7... Kxg7 {[%clk 0:02:58.4]} 8. Qb3 {[%clk 0:03:10.1]}
8... Be6 {[%clk 0:02:56.6]} 9. Bg2 {[%clk 0:03:08.8]} 9... Nc6 {[%clk
0:02:56.2]} 10. b5 {[%clk 0:03:05.2]} 10... Na5 {[%clk 0:02:53.9]} 11. Qb2+
{[%clk 0:03:04.4]} 11... f6 {[%clk 0:02:53.8]} 12. d3 {[%clk 0:02:48.8]} 12...
c6 {[%clk 0:02:49.8]} 13. bxc6 {[%clk 0:02:14.3]} 13... Nxc6 {[%clk 0:02:51.7]}
14. O-O {[%clk 0:02:10.9]} 14... Qd7 {[%clk 0:02:49.8]} 15. Nbd2 {[%clk
0:02:03.9]} 15... Bf7 {[%clk 0:02:47.9]} 16. Rfc1 {[%clk 0:01:52.4]} 16... Rfc8
{[%clk 0:02:46.6]} 17. Ng5 {[%clk 0:01:45.6]} 17... Bg8 {[%clk 0:02:44]} 18. Bh3
{[%clk 0:01:39.8]} 18... e6 {[%clk 0:02:41.7]} 19. Nde4 {[%clk 0:01:23.1]} 19...
b6 {[%clk 0:02:34.6]} 20. Nf3 {[%clk 0:00:56.8]} 20... Qe7 {[%clk 0:02:21.1]}
21. Rc4 {[%clk 0:00:45.7]} 21... Rc7 {[%clk 0:02:15.6]} 22. Rac1 {[%clk
0:00:40.3]} 22... Rac8 {[%clk 0:02:16.1]} 23. g4 {[%clk 0:00:18.8]} 23... h6
{[%clk 0:02:13.4]} 24. e3 {[%clk 0:00:13.8]} 24... Kh7 {[%clk 0:02:09.3]} 25.
Bg2 {[%clk 0:00:06.4]} 25... e5 {[%clk 0:02:07.1]} 26. R4c2 {[%clk 0:00:04.2]}
26... Ncb4 {[%clk 0:01:59.2]} 27. Rxc7 {[%clk 0:00:04.7]} 27... Rxc7 {[%clk
0:02:01.1]} 28. Rxc7 {[%clk 0:00:05]} 28... Qxc7 {[%clk 0:02:03]} 29. d4 {[%clk
0:00:03.8]} 29... exd4 {[%clk 0:01:48.6]} 30. Nxd4 {[%clk 0:00:05.1]} 30... Qe5
{[%clk 0:01:47.2]} 31. Qd2 {[%clk 0:00:02.7]} 31... f5 {[%clk 0:01:33]} 32. gxf5
{[%clk 0:00:04]} 32... gxf5 {[%clk 0:01:34.9]} 33. Ng3 {[%clk 0:00:04.8]} 33...
f4 {[%clk 0:01:35.4]} 34. Ngf5 {[%clk 0:00:02.8]} 34... fxe3 {[%clk 0:01:34.6]}
35. fxe3 {[%clk 0:00:03.9]} 35... Be6 {[%clk 0:01:27.4]} 36. a3 {[%clk
0:00:04.1]} 36... Bxf5 {[%clk 0:01:27.1]} 37. Nxf5 {[%clk 0:00:03]} 37... Qxf5
{[%clk 0:01:27.4]} 38. axb4 {[%clk 0:00:04.4]} 38... Qb1+ {[%clk 0:01:26.9]} 39.
Kf2 {[%clk 0:00:03.8]} 39... Nf6 {[%clk 0:01:27.4]} 40. Qd4 {[%clk 0:00:02.2]}
40... Qf5+ {[%clk 0:01:26.3]} 41. Kg1 {[%clk 0:00:03.4]} 41... Kg6 {[%clk
0:01:25.4]} 42. e4 {[%clk 0:00:02.9]} 42... Qf4 {[%clk 0:01:23.9]} 43. Qd3
{[%clk 0:00:02.3]} 43... Qe5 {[%clk 0:01:19]} 44. Qg3+ {[%clk 0:00:03]} 44...
Qxg3 {[%clk 0:01:19.3]} 45. hxg3 {[%clk 0:00:04.9]} 45... Nd7 {[%clk 0:01:20.7]}
46. Kf2 {[%clk 0:00:06]} 46... Kf6 {[%clk 0:01:20.9]} 47. Ke3 {[%clk 0:00:06.8]}
47... Ke5 {[%clk 0:01:22.3]} 48. b5 {[%clk 0:00:04.9]} 48... Nc5 {[%clk
0:01:22.4]} 49. Bf3 {[%clk 0:00:05.8]} 49... Ne6 {[%clk 0:01:22.6]} 50. Be2
{[%clk 0:00:06.8]} 50... Nd4 {[%clk 0:01:22.2]} 51. Bd3 {[%clk 0:00:07.1]} 51...
Ne6 {[%clk 0:01:20.8]} 52. Be2 {[%clk 0:00:07.9]} 52... Nc5 {[%clk 0:01:21.6]}
53. Bd3 {[%clk 0:00:06]} 53... Nb7 {[%clk 0:01:19.3]} 54. Bc4 {[%clk 0:00:06.2]}
54... Nd6 {[%clk 0:01:19.8]} 55. Bd3 {[%clk 0:00:07.6]} 55... Nb7 {[%clk
0:01:18.4]} 56. Bc4 {[%clk 0:00:08.4]} 56... Nc5 {[%clk 0:01:19.3]} 57. Bd3
{[%clk 0:00:08.1]} 57... Ne6 {[%clk 0:01:18.3]} 58. Bc4 {[%clk 0:00:07.7]} 58...
Nd4 {[%clk 0:01:18.8]} 59. Bd3 {[%clk 0:00:08.2]} 59... Ne6 {[%clk 0:01:19.6]}
60. Bc4 {[%clk 0:00:09]} 60... Nc7 {[%clk 0:01:19.6]} 61. Bd3 {[%clk 0:00:08.1]}
61... Ne8 {[%clk 0:01:21]} 62. Be2 {[%clk 0:00:06.1]} 62... Nd6 {[%clk
0:01:22.9]} 63. Bd3 {[%clk 0:00:07.3]} 63... h5 {[%clk 0:01:23.7]} 64. Be2
{[%clk 0:00:02.2]} 64... Nxe4 {[%clk 0:01:24.1]} 65. Bxh5 {[%clk 0:00:03.4]}
65... Nxg3 {[%clk 0:01:24.1]} 66. Be8 {[%clk 0:00:04.2]} 66... Ne4 {[%clk
0:01:24.9]} 67. Bc6 {[%clk 0:00:04.5]} 67... Nf6 {[%clk 0:01:24.3]} 68. Kd3
{[%clk 0:00:05.3]} 68... Nd5 {[%clk 0:01:24.6]} 69. Kc4 {[%clk 0:00:05.1]} 69...
Ne7 {[%clk 0:01:24.5]} 70. Bg2 {[%clk 0:00:04.6]} 70... Nf5 {[%clk 0:01:25.1]}
71. Kb4 {[%clk 0:00:05.4]} 71... Kd4 {[%clk 0:01:25.2]} 72. Bc6 {[%clk
0:00:05.3]} 72... Ne3 {[%clk 0:01:25.8]} 73. Be8 {[%clk 0:00:05.6]} 73... Nd5+
{[%clk 0:01:26.8]} 74. Ka4 {[%clk 0:00:05.5]} 74... Kc5 {[%clk 0:01:28.4]} 75.
Bd7 {[%clk 0:00:04.7]} 75... Nc3+ {[%clk 0:01:28.5]} 76. Kb3 {[%clk 0:00:04.7]}
76... Nxb5 {[%clk 0:01:30.4]} 77. Be8 {[%clk 0:00:05.2]} 77... Nd4+ {[%clk
0:01:31.7]} 78. Kc3 {[%clk 0:00:06]} 78... a5 {[%clk 0:01:33.2]} 79. Bf7 {[%clk
0:00:05]} 79... b5 {[%clk 0:01:34]} 80. Bg8 {[%clk 0:00:04.9]} 80... a4 {[%clk
0:01:34.8]} 81. Kb2 {[%clk 0:00:04.7]} 81... b4 {[%clk 0:01:35.8]} 82. Bf7
{[%clk 0:00:05]} 82... Nb5 {[%clk 0:01:35.8]} 83. Bg8 {[%clk 0:00:05.7]} 83...
Nd6 {[%clk 0:01:37.3]} 84. Be6 {[%clk 0:00:06.1]} 84... Nc4+ {[%clk 0:01:38.3]}
85. Kc2 {[%clk 0:00:04]} 85... Kd4 {[%clk 0:01:39.2]} 86. Bf5 {[%clk 0:00:04.2]}
86... b3+ {[%clk 0:01:38.9]} 87. Kc1 {[%clk 0:00:02.8]} 87... Kc3 {[%clk
0:01:39.9]} 88. Kb1 {[%clk 0:00:03.1]} 88... a3 {[%clk 0:01:40.5]} 0-1